Cogmind - Beta 16.1 @@@ ROGUE MODE // 2026.04.08 @ 19:55:11 Player: Ammie Result: Destroyed by G-47 Trooper with Particle Gun Performance ------------- Evolutions (0) 0 Regions Visited (2) 400 Robots Destroyed (17) 85 Value Destroyed (378) 378 Prototype IDs (2) 40 Alien Tech Used (0) 0 Bonus (0) 0 TOTAL SCORE: 903 Bonus ------- None Cogmind --------- Core Integrity 0/250 Matter 238/300 Energy 160/160 System Corruption 0% Temperature Warning (382) Movement Core (250) Ox4 Location -10/Mines Parts ------- > --- POWER (1) -------- Light Nuclear Core > --- PROPULSION (2) --- (None) > --- UTILITY (2) ------ Small Storage Unit Hacking Suite > --- WEAPON (2) ------- Beam Cannon Light Assault Rifle > --- INVENTORY (8) ---- Light Ion Engine Hover Unit Heat Sink Weight Redist. System Targeting Computer Peak State ------------ > --- POWER ------------ Light Nuclear Core > --- PROPULSION ------- Hover Unit Hover Unit > --- UTILITY ---------- Small Storage Unit Hacking Suite > --- WEAPON ----------- Particle Gun Beam Cannon > --- INVENTORY -------- Light Ion Engine Aluminum Leg Hover Unit Heat Sink Weight Redist. System Targeting Computer Beam Cannon Light Assault Rifle [Rating: 12] Favorites ----------- Power Light Nuclear Core Engine Light Ion Engine Power Core Light Nuclear Core Propulsion Aluminum Leg Leg Aluminum Leg Hover Unit Hover Unit Utility Small Storage Unit Storage Small Storage Unit Hackware Hacking Suite Weapon Beam Cannon Energy Gun Particle Gun Energy Cannon Beam Cannon Ballistic Gun Assault Rifle Build | -11 -10 -10 ------- Run | Yrd Mat Min Slots Evolved . | . . . Power . | . . . Propulsion . | . . . Utility . | . . . Weapon . | . . . Parts Attached 15 | 6 8 1 Power 2 | 1 1 . Engine 1 | 1 . . Core 1 | . 1 . Reactor . | . . . Propulsion 5 | 2 3 . Treads . | . . . Leg 2 | 2 . . Wheel . | . . . Hover 3 | . 3 . Flight . | . . . Utility 2 | 1 1 . Device . | . . . Storage 1 | 1 . . Processor . | . . . Hackware 1 | . 1 . Protection . | . . . Artifact . | . . . Weapon 6 | 2 3 1 Energy Gun 1 | . 1 . Energy Cannon 2 | . 2 . Ballistic Gun 3 | 2 . 1 Ballistic Cannon . | . . . Launcher . | . . . Special Weapon . | . . . Impact Weapon . | . . . Slashing Weapon . | . . . Piercing Weapon . | . . . Special Melee Weapon . | . . . Unidentified Prototypes . | . . . Parts Lost 6 | . 1 5 Power . | . . . Propulsion 4 | . 1 3 Utility . | . . . Weapon 2 | . . 2 Highest Loss Streak 5 | . 1 5 To Critical Strikes . | . . . Average Backups 6 | 1 6 7 Power 1 | . 1 1 Propulsion 1 | . 1 1 Utility 1 | . 1 3 Weapon 1 | . 1 1 Tool/Special . | . . . Unused Backups 4 | . . 4 Power 1 | . . 1 Propulsion . | . . . Utility 3 | . . 3 Weapon . | . . . Tool/Special . | . . . Average Slot Usage (%) 94 | . 96 76 Engine 1 | . 1 . Core 11 | . 11 14 Leg 15 | . 16 3 Hover 11 | . 11 8 Storage 14 | . 14 14 Hackware 11 | . 11 14 Energy Gun 2 | . 1 5 Energy Cannon 13 | . 13 14 Ballistic Gun 11 | . 12 1 Peak Build Rating 12 | 6 12 12 Average Rating 9 | 4 10 9 On Entrance 6 | . 6 12 Avg Prop Armor Cover (%) . | . . . Naked Turns . | . . . Heaviest Build 16 | 11 16 16 Greatest Support 20 | 20 20 12 Greatest Overweight (x) 4 | 2 1 4 Average Overweight (x) . | . . 2 Largest Inventory Capacity 8 | 8 8 8 Average Capacity 7 | 7 8 8 Most Carried 8 | 2 8 8 Average Carried 6 | 1 6 7 Final Capacity 8 | 8 8 8 Final Carried 8 | 2 8 5 Class Distribution -------------------- 64% | Mutant 35% | Scavenger-Mutant Dominant Class ---------------- Mutant | -10/Materials Mutant | -10/Mines Resources | -11 -10 -10 ----------- Run | Yrd Mat Min Matter Collected 481 | 211 255 15 Remotely . | . . . Salvage Created 527 | . 499 28 Parts 36 | . 34 2 Haulers Intercepted 2 | . 2 . Recyclers Shooed 1 | . 1 . Parts Field Recycled . | . . . Retrieved Matter . | . . . Parts Self-Destructed . | . . . Prevented . | . . . Parts Restored . | . . . Kills | -11 -10 -10 ------- Run | Yrd Mat Min Combat Hostiles Destroyed 10 | . 9 1 Guns 3 | . 3 . Cannons 6 | . 5 1 Classes Destroyed 5 | . 5 . Hauler 2 | . 2 . Operator 2 | . 2 . Watcher 3 | . 3 . Swarmer 3 | . 3 . Grunt 7 | . 6 1 Best Kill Streak 2 | . 2 1 Combat Bots Only 2 | . 2 1 Max Kills in Single Turn 1 | . 1 1 Gunslinging . | . . . Exploded . | . . . Melee . | . . . Uniques/NPCs Destroyed . | . . . Combat | -11 -10 -10 -------- Run | Yrd Mat Min Hostile Shots Fired 101 | . 63 38 Missed 24 | . 19 5 Hits 77 | . 44 33 Projectile 77 | . 44 33 Critical Strikes 1 | . . 1 Damage Taken 951 | . 462 489 Core 256 | . 86 170 Absorbed by Shields . | . . . Regen/Repaired (Parts) 28 | . 28 . Core Remaining (%) 100 | 100 . . Volleys Fired 68 | . 48 20 Largest 2 | . 2 2 Hottest 125 | . 80 125 Shots Fired 122 | . 96 26 Gun 56 | . 48 8 Cannon 66 | . 48 18 Launcher . | . . . Special . | . . . Kinetic 50 | . 48 2 Thermal 72 | . 48 24 Explosive . | . . . Electromagnetic . | . . . Robot Hit Streak 7 | . 5 7 Robot Miss Streak 4 | . 4 3 Penetration Max . | . . . Secondary Targets . | . . . Shots Hit Robots 62 | . 46 16 Core Hits 24 | . 20 4 Critical Kills 1 | . 1 . Critical Parts Destroyed . | . . . Critical Strikes 1 | . 1 . Meltdown 1 | . 1 . Melee Attacks . | . . . Impact . | . . . Slashing . | . . . Piercing . | . . . Sneak Attacks . | . . . Combat Hostiles . | . . . Follow-up Attacks . | . . . Damage Inflicted 1050 | . 787 263 Guns 401 | . 349 52 Cannons 646 | . 435 211 Explosions . | . . . Melee . | . . . Ramming 3 | . 3 . Kinetic 356 | . 349 7 Thermal 691 | . 435 256 Explosive . | . . . Electromagnetic . | . . . Impact . | . . . Slashing . | . . . Piercing . | . . . Highest Corruption . | . . . Average Corruption . | . . . Corruption Purged . | . . . Corruption Blocked . | . . . Overload Shots . | . . . Overflow Damage 4 | . 2 2 Projectiles 4 | . 2 2 Explosions . | . . . Melee . | . . . Knockbacks . | . . . Impact . | . . . Kinetic . | . . . Secondary . | . . . Self-Inflicted Damage . | . . . Shots . | . . . Rammed . | . . . Targets Rammed 1 | . 1 . Kicked 1 | . 1 . Crushed . | . . . Highest Temperature 539 | . 324 539 Average Temperature 157 | . 87 370 Received Heat Transfer 441 | . 141 300 Effects 16 | . 1 15 Shutdowns 4 | . . 4 Energy Bleed 3 | . 1 2 Interference 4 | . . 4 Matter Decay 1 | . . 1 Short Circuit 1 | . . 1 Damage (minor) 3 | . . 3 Siege Activations . | . . . Martial Activations . | . . . Shielding Activations . | . . . Robots Disrupted . | . . . Combat Hostiles . | . . . Robots Corrupted . | . . . Combat Hostiles . | . . . Parts Fried . | . . . Impact Corruptions . | . . . Robots Melted 1 | . 1 . Combat Hostiles 1 | . 1 . Parts Melted 1 | . 1 . Heat Transferred 1480 | . 925 555 Parts Sabotaged . | . . . Parts Stolen . | . . . Parts Stripped . | . . . Power Chain Reactions . | . . . Alert | -11 -10 -10 ------- Run | Yrd Mat Min Maximum Alert Level . | . . . Low Security (%) 100 | 100 100 100 Level 1 . | . . . Level 2 . | . . . Level 3 . | . . . Level 4 . | . . . Level 5 . | . . . High Security . | . . . Max Security . | . . . Peak Influence 77 | . 77 20 Initial 1 | . . 1 Average 16 | . 18 3 Influence Increases 326 | . 306 20 Destroy 0b10 Robot/C 200 | . 180 20 Destroy 0b10 Robot/NC 35 | . 35 . Destroy Leader 40 | . 40 . Successful Hack 6 | . 6 . Lose Combat Pursuer 45 | . 45 . Influence Decreases 326 | . 302 24 Entered New Map 3 | . . 3 Time Decay 302 | . 292 10 Lost Part 21 | . 10 11 Squads Dispatched . | . . . Investigation . | . . . Extermination . | . . . Reinforcement . | . . . Assault . | . . . Garrison . | . . . Intercept . | . . . Searches Triggered . | . . . Construction Impeded . | . . . Haulers Reinforced . | . . . Active Scanning Responses . | . . . Cargo Convoy Interrupts . | . . . Stealth | -11 -10 -10 --------- Run | Yrd Mat Min Distress Signals 1 | . 1 . Communications Jammed . | . . . Distress Signals . | . . . Times Spotted 20 | . 18 2 Peak Tracking Total 5 | . 5 2 Tactical Retreats 2 | . 2 . Traps | -11 -10 -10 ------- Run | Yrd Mat Min Traps Triggered 1 | . 1 . Indirectly . | . . . Trap Hack Attempts . | . . . Triggered . | . . . Disarmed . | . . . Reprogrammed . | . . . Reused . | . . . Traps Extracted . | . . . Installed . | . . . Triggered . | . . . Machines | -11 -10 -10 ---------- Run | Yrd Mat Min Machines Disabled . | . . . Max in Single Turn . | . . . Machines Repaired . | . . . Machines Dismantled . | . . . Machines Sabotaged . | . . . Overloaded Fab Kills . | . . . Hacking | -11 -10 -10 --------- Run | Yrd Mat Min Machines Accessed 5 | . 5 . Terminals 4 | . 4 . Fabricators . | . . . Repair Stations 1 | . 1 . Recycling Units . | . . . Scanalyzers . | . . . Garrison Access . | . . . Total Hacks 10 | . 10 . Successful 8 | . 8 . Failed 2 | . 2 . Catastrophic . | . . . Database Lockouts . | . . . Manual . | . . . Terminals 7 | . 7 . Fabricators . | . . . Repair Stations 3 | . 3 . Recycling Units . | . . . Scanalyzers . | . . . Garrison Access . | . . . Terminal Hacks 6 | . 6 . Robot Analysis 2 | . 2 . Prototype ID Bank 1 | . 1 . Locate Traps 1 | . 1 . Registered Components 1 | . 1 . Zone Layout 1 | . 1 . Fabricator Hacks . | . . . Repair Station Hacks 2 | . 2 . Scan Component 1 | . 1 . Repair 1 | . 1 . Recycling Unit Hacks . | . . . Scanalyzer . | . . . Garrison Access Hacks . | . . . Unauthorized Hacks . | . . . Terminals . | . . . Fabricators . | . . . Repair Stations . | . . . Recycling Units . | . . . Scanalyzers . | . . . Garrison Access . | . . . Data Cores Recovered 2 | . 2 . Used 1 | . 1 . Hacking Detections 3 | . 3 . Full Trace Events . | . . . Feedback Events . | . . . Feedback Blocked . | . . . Robot Schematics Acquired . | . . . Robots Built . | . . . Authchips . | . . . Time . | . . . Total Robot Build Rating . | . . . Part Schematics Acquired . | . . . Parts Built . | . . . Authchips . | . . . Time . | . . . Total Part Build Rating . | . . . Part Studies Acquired . | . . . Parts Repaired 1 | . 1 . Time 38 | . 38 . Parts Recycled . | . . . Recycled Matter . | . . . Retrieved Matter . | . . . Retrieved Components . | . . . Parts Scanalyzed . | . . . Part Schematics Acquired . | . . . Parts Damaged . | . . . Bothacking | -11 -10 -10 ------------ Run | Yrd Mat Min Used RIF Installer . | . . . Robots Hacked . | . . . Non-combat . | . . . Combat . | . . . Robot Hacks Applied . | . . . Relay Couplers Released . | . . . Fabnet Peak Effective % . | . . . Robots Rewired . | . . . Allies Hacked . | . . . Hacks Repelled . | . . . Allies | -11 -10 -10 -------- Run | Yrd Mat Min Total Allies . | . . . Largest Group . | . . . Highest-Rated Group . | . . . Highest-Rated Ally . | . . . Total Orders . | . . . Ally Attacks . | . . . Total Damage . | . . . Kills . | . . . Allies Corrupted . | . . . Allies Melted . | . . . Intel | -11 -10 -10 ------- Run | Yrd Mat Min Active Infowar (turns) . | . . . Robot Analysis Total 2 | . 2 . Derelict Logs Recovered . | . . . Drone Launches . | . . . Drone Recoveries . | . . . Exploration | -11 -10 -10 ------------- Run | Yrd Mat Min Turns Passed 1092 | 57 962 73 Spaces Moved 679 | 37 630 12 Core 15 | 10 . 5 Treads . | . . . Legs 385 | 27 355 3 Wheels . | . . . Hover 279 | . 275 4 Flight . | . . . Fastest Speed 50 | 50 116 116 Average Speed 120 | 114 118 206 Slowest Speed 250 | 150 190 250 Overloaded Moves . | . . . Propulsion Burnouts . | . . . Robots Hopped . | . . . Potential Cave-ins . | . . . Cave-ins Triggered . | . . . Exploration Rate (%) 34 | 3 95 4 Regions Visited 2 Branch Regions 1 Pre-discovered Areas . | . . . Known Exits Taken . | . . . Unknown Exits Taken 2 | 1 1 . Scrap Searched . | . . . Spaces Dug . | . . . Terrain Destroyed . | . . . Melee . | . . . Projectile . | . . . AOE . | . . . Terrain Rammed . | . . . Walls Destroyed . | . . . Machines Disabled . | . . . Actions | -11 -10 -10 --------- Run | Yrd Mat Min Total 826 | 48 743 35 Wait 52 | 4 48 . Move 677 | 36 629 12 Hop . | . . . Pick Up 9 | 2 7 . Fast Attach 7 | 6 1 . Attach 5 | . 2 3 Detach . | . . . Swap 6 | . 6 . Drop 1 | . 1 . Fire 68 | . 48 20 Melee . | . . . Ram . | . . . Kick 1 | . 1 . Crush . | . . . Escape Stasis . | . . . Rewire . | . . . Trap . | . . . Miscellaneous . | . . . Route ------- -11/Scrapyard -10/Materials (discovered 4 exits: [*Mat x3] / [*Min]) -10/Mines History --------- Turn | Location | Event 16 | -11/Scrapyard | Discovered new exit (range 16) 58 | -11/Scrapyard | Entered Materials 283 | -10/Materials | Discovered new exit (range 8) 303 | -10/Materials | Build established: Mutant 477 | -10/Materials | Discovered new exit (range 4) 646 | -10/Materials | Discovered new exit (range 8) 864 | -10/Materials | Repaired Lgt. Nuclear Core 939 | -10/Materials | Discovered new exit (range 9) 1020 | -10/Materials | Entered Mines 1053 | -10/Mines | Core integrity fell below 50% 1081 | -10/Mines | Core integrity fell below 20% 1093 | -10/Mines | Destroyed by G-47 Trooper with Particle Gun Last Messages --------------- 01044_ Particle Gun destroyed. 01045_ Power failure, Lgt. Nuclear Core shutdown. 01046_ Hover Unit destroyed. 01065_ Overheating: System interference. 01065_ Beam Cannon temporarily disabled. 01065_ R-06 Scavenger collects Aluminum Leg. 01066_ Critical hit (Burn: +37). 01068_ Beam Cannon destroyed. 01069_ R-06 Scavenger collects Heat Sink. 01070_ Aluminum Leg destroyed. 01070_ Destroyed Lgt. Nuclear Core. 01072_ Overheating: Matter decay (-40). 01073_ Power failure, Lgt. Nuclear Core shutdown. 01074_ Overheating: Hacking Suite damaged (-5). 01080_ Overheating: Lgt. Nuclear Core damaged (-9). 01081_ Power failure, Lgt. Nuclear Core shutdown. 01081_ Beam Cannon broken. 01081_ Overheating: Short circuit. 01082_ Overheating: Energy bleed (-20). 01083_ Overheating: Broken Beam Cannon damaged (-30). Map ----- +----------------------------------------------------+ | | | | | | | | | | | | | | | | | | | | | | | | | | | | | | | | | | | ???????????????????????????????????????????? | | ???????????????????????????????????????????? | | ???????????????????????????????????????????? | | ???????????????????????????????????????????? | | ????????????????????#######????????????????? | | ????????????????????# #????????????????? | | ????????????????????# """g#????????????????? | | ????????????????????# """ #????????????????? | | ????????????????????# """@#????????????????? | | ????????????????????# #????????????????? | | ????????????????????#% #????????????????? | | ????????????????????# #????????????????? | | ????????????????????## ###????????????????? | | ?????????????????????# #??????????????????? | | ?????????????????????# ?????????????????? | | ?????????????????????# ###????????????????? | | ????????????????????? #??????????????????? | | ?????????????????????# #??????????????????? | | ????????????????????? #??????????????????? | | ????????????????????? ??????????????????? | | ???????????????????? ??????????????????? | | ????????????????????# ??????????????????? | | ????????????????????? ?????????????????? | | ????????????????????? ?????????????????? | | ????????????????????? ?????????????????? | | ????????????????????? ?????????????????? | | ????????????????????? ??????????????????? | | ???????????????????????????????????????????? | | ???????????????????????????????????????????? | | ???????????????????????????????????????????? | | ???????????????????????????????????????????? | | ???????????????????????????????????????????? | | ???????????????????????????????????????????? | +----------------------------------------------------+ Best States ------------- Heat Dissipation 25 Energy Generation 14 Energy Capacity 160 Matter Stores 300 Matter Capacity 300 Sight Range 16 Terrain Scan Density 10 Evasion (%) 55 Offensive Hacking 10 Item Schematics ----------------- None Robot Schematics ------------------ None Fabricated ------------ Nothing Repaired ---------- Lgt. Nuclear Core | 44% | -10/Materials Studied --------- None Alien Tech Used ----------------- None Achievements -------------- None Challenges ------------ None Game ------ Seed GravjetClaymoresScreen Manual? 0 Play Time 00:09:34 Cumulative 44.0 hours Start 2026.04.08 @ 19:44:52 End 2026.04.08 @ 19:55:11 Sessions 1 Manual Loads 0 Difficulty Rogue Special Mode None Game No. 75 Rogue 75 Adventurer 0 Explorer 0 Win Type - Total 0 Types 0/0/0/0/0/0/0/0/0/0 Lore% 16 Gallery% 24 Achievement% 20 Wizard Run 0 Options --------- Layout 0 ASCII 0 Keyboard 0 Movement Mouse Keybinds 0 Fullscreen 1 Font 24/Smallcaps Map View 38x25 Zoom Use 99% Tactical HUD 1 Map Filters NONE Filters NONE Steam 1 RUN: dc4a7aa3-4136-4526-a491-9bb569496808